bitfinex/quotes_ETHUSD_20250604
["timestamp","ask_amount","ask_price","bid_price","bid_amount"]
[1749078352762,3.92453701,2600.6,2600.5,18.225]
[1749078353662,3.37453701,2600.6,2600.5,18.225]
[1749078356007,3.37453701,2600.8,2600.6,30.0]
[1749078356165,0.02,2600.9,2600.6,30.0]
[1749078356596,0.02,2600.9,2600.6,29.672329]
[1749078357064,0.02,2600.9,2600.6,21.91331835]
[1749078357266,0.02,2600.9,2600.6,29.428218]
[1749078357466,0.02,2600.9,2600.8,19.905821]
[1749078357704,0.02,2600.9,2600.8,17.239312]
[1749078358207,0.02,2600.9,2600.5,16.128]
[1749078358502,0.02,2600.9,2600.6,22.773699]
[1749078360798,0.02,2600.9,2600.7,16.0]
[1749078361309,0.02,2600.9,2600.8,29.851457]
[1749078365024,0.00010393,2600.9,2600.8,29.851457]
[1749078367292,0.00010393,2600.9,2600.8,30.62045115]
[1749078368630,0.00010393,2600.9,2600.8,29.851457]
[1749078369938,0.00010393,2600.9,2600.8,27.356361]
[1749078370101,3.37464094,2600.9,2600.8,21.94641]
[1749078370295,3.37464094,2600.9,2600.8,29.77641]
[1749078370707,0.00010393,2600.9,2600.8,29.77641]
[1749078371444,3.37464094,2600.9,2600.8,16.0]
[1749078371625,3.37464094,2600.9,2600.5,8.29]
[1749078371940,3.37464094,2600.9,2600.8,1.603]
[1749078371941,0.55010393,2600.9,2600.8,1.603]
[1749078372248,0.00010393,2600.9,2600.8,1.603]
[1749078372398,0.00010393,2600.9,2600.8,27.76713]
[1749078374109,3.37464094,2600.9,2600.8,23.836]
[1749078377911,3.37464094,2600.9,2600.8,16.15241443]
[1749078378131,3.37464094,2600.9,2600.8,1.603]
[1749078378343,3.37464094,2600.9,2600.8,7.836]
[1749078379526,3.37464094,2600.9,2600.8,16.125]
[1749078380457,3.85149503,2600.9,2600.8,16.125]
[1749078380753,3.85149503,2600.9,2600.8,16.123]
[1749078383224,3.85149503,2600.9,2600.8,9.892]
[1749078383562,3.85149503,2600.9,2600.8,16.121]
[1749078383926,4.40149503,2600.9,2600.8,9.892]
[1749078384157,5.78689503,2600.9,2600.8,9.892]
[1749078384336,5.78689503,2600.9,2600.8,16.122]
[1749078384537,5.78689503,2600.9,2600.8,16.126]
[1749078384721,5.78689503,2600.9,2600.8,9.896]
[1749078384923,5.78689503,2600.9,2600.8,16.13]
[1749078385579,2.41235802,2600.9,2600.8,16.13]
[1749078385758,5.31004094,2600.9,2600.8,16.13]
[1749078387157,3.92464094,2600.9,2600.8,16.13]
[1749078388667,0.00010393,2600.9,2600.8,16.13]
[1749078388856,3.37464094,2600.9,2600.8,16.13]
[1749078389225,3.37464094,2600.9,2600.8,46.13]
[1749078389497,3.37464094,2600.9,2600.8,42.93655]
[1749078389761,3.37464094,2600.9,2600.8,31.448242]
[1749078390127,3.37464094,2600.9,2600.8,30.001022]
[1749078391666,3.37464094,2600.9,2600.8,30.45609329]
[1749078391863,0.00010393,2600.9,2600.8,30.001022]
[1749078393365,0.00010393,2600.9,2600.8,30.77001615]
[1749078393763,3.37453701,2601.5,2601.0,30.0]
[1749078394056,3.37453701,2601.5,2600.9,28.83103]
[1749078397016,0.02,2601.9,2600.9,32.20556701]
[1749078397187,0.02,2601.9,2601.0,30.0]
[1749078397579,0.02,2601.9,2601.1,0.76887795]
[1749078397764,3.39453701,2601.9,2601.3,30.0]
[1749078397968,3.39453701,2601.9,2601.5,40.0]
[1749078398181,3.39453701,2601.9,2601.7,40.0]
[1749078398382,3.39453701,2601.9,2601.7,30.0]
[1749078398679,3.39453701,2601.9,2601.7,13.279036]
[1749078399055,0.02,2601.9,2601.7,13.279036]
[1749078399295,3.37453701,2602.7,2601.8,10.0]
[1749078399514,3.37453701,2602.7,2601.9,10.0]
[1749078399680,3.37453701,2602.5,2602.1,26.148242]
[1749078399876,3.37453701,2602.5,2602.4,7.783019]
[1749078400194,3.37453701,2602.5,2602.4,14.026019]
[1749078401067,1.3677,2602.8,2602.4,14.026019]
[1749078401268,3.37453701,2602.5,2602.4,6.243]
[1749078401476,3.37453701,2602.5,2602.4,14.045358]
[1749078403373,3.37453701,2602.5,2602.4,22.243]
[1749078404066,3.37453701,2602.5,2602.4,16.0]
[1749078404273,3.37453701,2602.5,2602.4,22.238]
[1749078406771,0.55,2602.7,2602.5,16.0]
[1749078407116,3.37453701,2602.6,2602.4,6.238]
[1749078407278,3.37453701,2602.6,2602.5,1.609]
[1749078407480,3.84876071,2602.6,2602.5,1.609]
[1749078407803,3.84876071,2602.6,2602.5,7.844]
[1749078409811,1.3677,2602.8,2602.5,7.844]
[1749078409968,3.37453701,2602.6,2602.5,7.844]
[1749078410787,3.37453701,2602.6,2602.5,40.761194]
[1749078412642,3.37453701,2602.6,2602.5,40.479346]
[1749078413015,3.37453701,2602.6,2602.5,40.263471]
[1749078413237,3.37453701,2602.6,2602.5,37.788471]
[1749078416349,3.37453701,2602.6,2602.5,37.500471]
[1749078416648,3.37453701,2602.6,2602.5,37.495471]
[1749078418525,4.70683701,2602.6,2602.5,37.495471]
[1749078418725,3.37453701,2602.6,2602.5,37.495471]
[1749078421023,3.37453701,2602.6,2602.5,16.0]
[1749078421228,4.73173701,2602.6,2602.5,23.835]
[1749078421420,0.55,2602.7,2602.6,16.0]
[1749078421640,3.37453701,2602.7,2602.6,16.0]
[1749078422260,0.57,2602.9,2602.6,16.0]
[1749078422429,3.37453701,2602.7,2602.6,16.0]
[1749078422626,3.37453701,2602.7,2602.6,26.040552]
[1749078422960,3.37453701,2602.7,2602.6,24.676258]
[1749078423931,3.39453701,2602.9,2602.6,24.676258]
[1749078424140,3.37453701,2602.7,2602.6,16.0]
[1749078424344,3.37453701,2602.7,2602.6,29.788022]
[1749078424587,3.37453701,2602.7,2602.6,19.645975]
[1749078424866,3.37453701,2602.7,2602.3,16.0]
[1749078425047,1.3578,2602.7,2602.5,16.0]
[1749078425360,3.37453701,2602.6,2602.5,16.0]
[1749078425926,3.37453701,2602.6,2602.5,22.238]
[1749078431193,3.37453701,2602.6,2602.5,40.492214]
[1749078431379,3.37453701,2602.6,2602.5,39.844428]
[1749078431585,3.37453701,2602.6,2602.5,35.646191]
[1749078431783,3.37453701,2602.6,2602.5,30.830301]
[1749078431987,3.37453701,2602.6,2602.5,27.501254]
[1749078432188,3.37453701,2602.6,2602.5,24.85874]
[1749078433289,3.35223701,2602.6,2602.5,24.85874]
[1749078434154,0.02,2602.9,2602.5,24.85874]
[1749078434357,0.02,2602.9,2602.6,30.0]
[1749078434801,0.02,2602.9,2602.8,16.0]
[1749078435094,0.02,2602.9,2602.8,36.578109]
[1749078435399,0.02,2602.9,2602.8,31.407928]
[1749078435612,0.02,2602.9,2602.8,20.886651]
[1749078435901,1.3272,2602.9,2602.8,7.861]
[1749078436058,1.8772,2602.9,2602.8,7.861]
[1749078437210,1.8772,2602.9,2602.8,1.609]
[1749078437503,1.8772,2602.9,2602.8,7.86]
[1749078438272,1.8772,2602.9,2602.8,1.609]
[1749078438481,1.8772,2602.9,2602.3,16.0]
[1749078438482,1.3799,2602.7,2602.3,3.693476]
[1749078438689,1.3799,2602.7,2602.5,16.0]
[1749078438894,3.37453701,2602.6,2602.5,16.0]
[1749078439274,3.37453701,2602.6,2602.4,7.869]
[1749078440788,3.37453701,2602.6,2602.5,5.31979]
[1749078442293,0.02,2602.9,2602.5,5.31979]
[1749078442506,1.21675666,2605.2,2602.8,3.35979558]
[1749078442815,1.21675666,2605.2,2602.6,7.17031392]
[1749078442816,1.5248224,2607.4,2607.1,1.12513654]
[1749078442963,0.02,2607.9,2607.2,7.519]
[1749078443165,6.9881483,2607.7,2607.4,0.9108779]
[1749078443384,0.69881483,2607.6,2607.4,0.9108779]
[1749078443723,0.02,2607.9,2607.2,7.519]
[1749078443724,0.02,2607.9,2607.8,0.21206307]
[1749078443892,1.3619,2608.1,2608.0,0.19206307]
[1749078444097,1.3619,2608.1,2608.0,8.08757205]
[1749078444350,5.74008327,2610.3,2608.1,22.790774]
[1749078444639,6.9881483,2608.7,2608.2,0.3638229]
[1749078444925,0.69881483,2608.6,2608.3,0.3638229]
[1749078445126,7.0081483,2608.9,2608.2,10.0]
[1749078445127,0.02,2608.9,2608.4,0.9244417]
[1749078445284,6.9881483,2608.7,2608.5,0.9244417]
[1749078445481,6.9881483,2608.7,2608.2,10.0]
[1749078445722,6.9881483,2608.7,2608.3,0.36035755]
[1749078445940,6.9881483,2608.4,2608.0,7.545]
[1749078446138,6.9881483,2608.4,2608.1,0.57015212]
[1749078446440,6.9881483,2608.4,2608.2,0.36042139]
[1749078446600,6.9881483,2608.4,2608.3,0.57014985]
[1749078446801,0.69881483,2608.6,2608.3,0.91970009]
[1749078447011,0.76869631,2608.5,2608.1,16.0]
[1749078447217,0.76869631,2608.5,2608.2,0.35942926]
[1749078447438,0.76869631,2608.5,2608.4,16.0]
[1749078447647,8.2345483,2608.8,2608.4,16.0]
[1749078447826,0.55,2608.7,2608.4,16.0]
[1749078448226,6.9881483,2608.5,2608.4,16.0]
[1749078448744,6.9881483,2608.5,2608.3,10.622]
[1749078448745,0.55,2608.4,2608.3,8.276]
[1749078448955,0.55,2608.4,2608.3,18.132]
[1749078449126,1.30381483,2608.4,2608.3,18.132]
[1749078449710,1.30381483,2608.4,2608.3,10.622]
[1749078449914,1.30381483,2608.4,2608.3,18.46820979]
[1749078450327,1.30381483,2608.4,2608.3,18.46822539]
[1749078450538,1.30381483,2608.4,2608.3,18.121]
[1749078451139,1.30381483,2608.4,2608.3,10.96487186]
[1749078451457,8.29196313,2608.4,2608.3,10.617]
[1749078451630,8.29196313,2608.4,2608.3,10.96486968]
[1749078452353,8.29196313,2608.4,2608.3,18.4492851]
[1749078452554,8.29196313,2608.4,2608.3,18.101]
[1749078452757,8.29196313,2608.4,2607.3,0.76707582]
[1749078452954,0.55,2608.0,2607.4,1.12356163]
[1749078453140,0.55,2608.0,2607.5,0.3565155]
[1749078453341,0.55,2608.0,2607.6,0.55739712]
[1749078453545,0.55,2608.0,2607.7,0.2090237]
[1749078453837,0.55,2608.0,2607.8,8.02440386]
[1749078454040,0.75381483,2607.9,2607.8,7.467]
[1749078454753,0.75381483,2607.9,2607.8,10.141913]
[1749078455117,0.75381483,2607.9,2607.8,7.467]
[1749078455517,0.55,2608.3,2607.8,8.02426169]
[1749078455744,0.55,2608.3,2607.9,0.34828049]
[1749078456067,0.55,2608.3,2608.0,0.55806973]
[1749078456381,0.55,2608.3,2607.8,7.467]
[1749078457228,1.2464,2608.8,2607.9,1.32497504]
[1749078457428,6.98514464,2608.6,2608.0,11.17207489]
[1749078457640,0.69851446,2608.5,2608.1,0.55791996]
[1749078457841,0.69851446,2608.5,2608.0,10.614]
[1749078458255,0.69851446,2608.5,2608.1,0.34866514]
[1749078458437,0.55,2608.2,2608.0,10.614]
[1749078458639,0.55,2608.2,2608.1,2.5532151]
[1749078458836,1.30351446,2608.2,2608.1,2.344]
[1749078459127,1.30351446,2608.2,2608.1,10.3201845]
[1749078459449,7.28637986,2608.2,2608.1,9.97147819]
[1749078459743,7.28637986,2608.2,2608.1,9.761]
[1749078460145,0.55,2608.2,2608.1,9.761]
[1749078460757,0.55,2608.2,2608.1,9.97168289]
[1749078460922,1.2464,2608.8,2608.1,10.3228242]
[1749078461124,6.98514464,2608.5,2608.2,16.5616961]
[1749078461359,7.6836591,2608.5,2608.3,0.21063102]
[1749078461561,7.6836591,2608.5,2608.2,16.0]
[1749078461860,0.55,2608.4,2608.2,16.0]
[1749078462565,0.55,2608.4,2608.3,0.35105053]
[1749078462855,0.55,2608.4,2608.3,0.56168023]
[1749078463023,0.55,2608.4,2608.2,16.0]
[1749078463221,0.55,2608.4,2608.3,0.2106319]
[1749078463447,0.55,2608.4,2608.2,16.0]
[1749078463648,0.55,2608.4,2608.3,0.351061]
[1749078463850,0.55,2608.4,2608.3,0.21063625]
[1749078464048,1.30351446,2608.4,2608.2,16.0]
[1749078464262,1.30351446,2608.4,2608.1,2.344]
[1749078464470,6.98514464,2608.2,2608.1,18.344]
[1749078464767,7.53514464,2608.2,2608.1,26.07193528]
[1749078464969,0.55,2608.2,2608.1,26.07193528]
[1749078465166,1.2464,2608.8,2608.1,26.07184098]
[1749078465379,6.98514464,2608.2,2608.1,9.715]
[1749078465671,6.98514464,2608.2,2608.1,9.707]
[1749078466442,6.98514464,2608.2,2608.1,10.42126195]
[1749078466647,6.98514464,2608.2,2608.1,10.06437981]
[1749078466944,7.6836591,2608.2,2608.1,10.06437981]
[1749078467267,8.2336591,2608.2,2608.1,10.06437981]
[1749078467470,8.2336591,2608.2,2608.1,10.06493072]
[1749078467671,8.2336591,2608.2,2608.1,10.4217945]
[1749078467869,8.2336591,2608.2,2608.1,10.42179847]
[1749078468179,8.2336591,2608.2,2608.1,10.42180305]
[1749078468332,8.2336591,2608.2,2608.1,10.06493072]
[1749078468796,8.2336591,2608.2,2608.1,10.42174724]
[1749078468992,8.2336591,2608.2,2608.1,10.06493072]
[1749078469896,8.2336591,2608.2,2608.1,10.42155787]
[1749078470197,8.2336591,2608.2,2608.1,10.4215209]
[1749078470358,8.2336591,2608.2,2608.1,10.06493072]
[1749078470552,7.3151827,2608.2,2608.1,10.06493072]
[1749078471606,5.93746941,2608.2,2608.1,11.27767374]
[1749078471761,5.93746941,2608.2,2608.1,11.28275878]
[1749078472462,3.64126589,2608.2,2608.1,10.07001576]
[1749078472657,2.94275143,2608.2,2608.1,11.6014331]
[1749078473491,2.94275143,2608.2,2608.1,10.07001576]
[1749078475803,4.20525143,2608.2,2608.1,2.70701576]
[1749078476005,4.20525143,2608.2,2606.6,3.05610648]
[1749078476006,0.55,2608.1,2607.6,1.53141734]
[1749078476206,3.65525143,2608.2,2607.7,17.792]
[1749078476207,0.55,2607.9,2607.7,17.792]
[1749078476405,7.53514464,2607.8,2607.7,8.267]
[1749078476704,7.53514464,2607.8,2607.7,17.789]
[1749078477001,0.55,2607.8,2607.7,17.789]
[1749078477203,7.53514464,2607.8,2607.7,17.789]
[1749078477608,8.2886591,2607.8,2607.7,17.789]
[1749078477902,1.30351446,2607.8,2607.7,17.789]
[1749078478105,1.2625,2608.2,2607.7,17.789]
[1749078478305,6.98514464,2608.1,2607.7,17.789]
[1749078479802,7.53514464,2607.8,2607.7,8.267]
[1749078480014,7.53514464,2607.8,2607.7,17.767]
[1749078480324,6.98514464,2607.8,2607.7,17.767]
[1749078482533,4.68878508,2607.8,2607.7,17.767]
[1749078482730,0.55,2608.1,2607.7,17.767]
[1749078482936,7.53514464,2608.1,2607.7,17.767]
[1749078483140,0.87976446,2608.0,2607.7,17.767]
[1749078485246,0.87976446,2608.0,2607.7,8.267]
[1749078485381,6.98514464,2607.8,2607.7,8.267]
[1749078485583,6.98514464,2607.8,2607.7,17.724]
[1749078486285,6.98514464,2607.8,2607.7,33.724]
[1749078489641,0.87976446,2608.0,2607.7,33.724]
[1749078489837,0.87976446,2608.0,2607.8,1.21879488]
[1749078492214,7.53514464,2608.1,2607.8,1.21879488]
[1749078492429,1.4027,2608.8,2607.9,1.21879488]
[1749078492604,1.4027,2608.8,2608.2,1.21879488]
[1749078492804,1.4027,2608.8,2608.4,17.21879488]
[1749078493045,1.4027,2608.8,2608.5,10.54079488]
[1749078493326,0.02,2608.9,2608.6,17.21879488]
[1749078493538,0.02,2608.9,2608.8,11.21879488]
[1749078493738,0.02,2608.9,2608.8,1.21879488]
[1749078493890,0.02,2608.9,2608.8,10.0]
[1749078495165,0.02,2608.9,2608.8,9.306]
[1749078495324,0.72051446,2608.9,2608.8,9.306]
[1749078496865,7.7056591,2608.9,2608.8,9.306]
[1749078497225,0.72051446,2608.9,2608.8,9.306]
[1749078497421,7.00514464,2608.9,2608.8,9.306]
[1749078498025,7.00514464,2608.9,2608.8,25.306]
[1749078499268,7.00514464,2608.9,2608.8,16.0]
[1749078499436,7.00514464,2608.9,2608.8,25.274]
[1749078501507,6.98514464,2608.9,2608.8,25.274]
[1749078501793,0.38980073,2610.8,2608.8,25.274]
[1749078501794,1.349,2613.2,2611.4,16.0]
[1749078502089,1.349,2613.2,2611.2,0.0197]
[1749078502090,6.98514464,2612.0,2611.8,7.005144]
[1749078502319,0.69851446,2611.9,2611.6,7.005144]
[1749078502580,0.69851446,2611.9,2611.8,7.005144]
[1749078502875,6.98514464,2611.9,2611.8,7.36669043]
[1749078503038,6.98514464,2612.1,2611.8,10.07703436]
[1749078503368,6.98514464,2612.4,2612.0,7.005144]
[1749078503572,6.98514464,2612.4,2612.1,0.36154643]
[1749078503736,0.69851446,2612.3,2612.2,7.36669043]
[1749078504432,6.98514464,2612.4,2611.8,16.0]
[1749078504632,6.98514464,2612.4,2612.0,7.005144]
[1749078504879,1.349,2612.8,2612.2,7.005144]
[1749078505177,7.53514464,2612.3,2611.8,7.005144]
[1749078505349,6.51037081,2612.3,2612.0,7.005144]
[1749078505552,0.65103708,2612.2,2611.8,7.005144]
[1749078505951,1.349,2612.8,2612.0,7.005144]
[1749078505952,5.96037081,2612.5,2612.0,7.005144]
[1749078506146,0.55,2612.4,2611.8,7.005144]
[1749078506665,0.55,2612.4,2611.7,14.847144]
[1749078506869,0.55,2612.0,2611.9,7.005144]
[1749078507268,1.9204,2612.0,2611.3,16.0]
[1749078507460,1.9204,2612.0,2611.9,14.793144]
[1749078508778,7.88077081,2612.0,2611.9,14.793144]
[1749078509152,7.88077081,2612.0,2611.9,7.005144]
[1749078509359,7.88077081,2612.0,2611.9,7.765]
[1749078509582,8.66884789,2612.0,2611.9,14.770144]
[1749078511413,8.66884789,2612.0,2611.9,7.738]
[1749078511713,8.66884789,2612.0,2611.9,14.739144]
[1749078516221,8.66884789,2612.0,2611.5,7.005144]
[1749078516516,2.70847708,2612.0,2611.9,9.559144]
[1749078516677,1.9204,2612.0,2611.9,9.559144]
[1749078517584,7.88077081,2612.0,2611.9,9.559144]
[1749078517780,1.9204,2612.0,2611.9,2.554]
[1749078518097,0.55,2611.8,2611.2,0.0197]
[1749078518302,0.55,2611.8,2611.7,7.669]
[1749078519494,6.51037081,2611.8,2611.7,7.669]
[1749078521692,0.55,2611.6,2611.5,7.631]
[1749078521890,7.30852789,2611.6,2611.5,7.631]
[1749078523991,7.30852789,2611.6,2611.2,0.0197]
[1749078523992,7.30852789,2611.6,2611.4,7.604]
[1749078524194,6.51037081,2611.5,2611.4,7.604]
[1749078524829,0.55,2611.4,2611.2,0.0197]
[1749078525082,0.55,2611.4,2611.3,0.36048382]
[1749078525247,1.28085279,2611.4,2611.3,7.593]
[1749078525433,1.28085279,2611.4,2611.3,7.95370621]
[1749078526350,1.28085279,2611.4,2611.3,0.36070621]
[1749078526549,1.9633,2611.3,2611.2,0.0197]
[1749078526769,2.88375236,2611.3,2611.2,0.38083814]
[1749078527260,0.55,2611.2,2611.1,7.572]
[1749078527444,7.52216687,2611.2,2611.1,10.40049928]
[1749078528249,7.52216687,2611.2,2611.0,8.257]
[1749078528250,7.52216687,2611.2,2611.0,15.817]
[1749078528571,7.52216687,2611.2,2611.1,2.467]
[1749078528779,7.52216687,2611.2,2611.0,7.56]
[1749078529681,7.52216687,2611.2,2610.1,16.02]
[1749078529682,7.52216687,2611.2,2610.1,0.02]
[1749078529897,6.97216687,2610.4,2610.1,0.02]
[1749078530091,6.05445971,2610.4,2610.1,0.02]
[1749078530287,6.05445971,2610.4,2610.2,7.539]
[1749078530585,0.55,2610.3,2610.1,0.02]
[1749078530771,0.55,2610.3,2610.2,7.534]
[1749078531357,0.55,2610.3,2610.1,0.02]
[1749078531888,0.55,2610.3,2610.2,7.526]
[1749078532089,0.55,2610.3,2610.1,0.02]
[1749078532274,2.61709057,2610.2,2610.1,0.02]
[1749078532473,2.61709057,2610.2,2610.1,7.542]
[1749078533406,2.61709057,2610.2,2609.1,1.23083144]
[1749078533407,0.55,2609.6,2609.1,1.23083144]
[1749078533605,0.55,2609.6,2609.1,0.02]
[1749078533776,0.55,2609.6,2608.9,0.76660546]
[1749078533975,0.55,2609.6,2609.0,17.212503]
[1749078534368,0.55,2609.6,2609.1,7.505]
[1749078534768,0.55,2609.8,2609.2,17.2373]
[1749078535115,0.55,2609.8,2609.2,10.0]
[1749078535316,0.55,2609.8,2609.3,8.609088]
[1749078535466,0.55,2609.8,2609.4,10.0]
[1749078535779,6.97216687,2609.6,2609.3,16.0]
[1749078535979,6.97216687,2609.6,2609.2,16.0]
[1749078537502,6.97216687,2609.6,2609.3,10.647]
[1749078538299,6.97216687,2609.8,2609.3,10.647]
[1749078540398,6.97216687,2609.8,2609.4,0.34321836]
[1749078540599,6.97216687,2609.8,2609.5,0.34321836]
[1749078540799,6.97216687,2609.8,2609.6,0.34321836]
[1749078541102,7.52216687,2609.8,2609.7,0.34321836]
[1749078541308,8.27438356,2609.8,2609.7,7.438]
[1749078541504,8.27438356,2609.8,2609.7,0.34321836]
[1749078541838,0.55,2609.5,2609.4,16.0]
[1749078542023,7.52216687,2609.5,2609.4,23.77939388]
[1749078542905,7.52216687,2609.5,2609.4,16.34339388]
[1749078543110,7.52216687,2609.5,2609.4,23.76739388]
[1749078544560,8.42022356,2609.5,2609.4,7.76739388]
[1749078545263,8.42022356,2609.5,2609.4,10.13339388]
[1749078545450,8.42022356,2609.5,2609.4,10.13039388]
[1749078545760,8.42022356,2609.5,2609.4,10.12736859]
[1749078546060,8.42022356,2609.5,2609.4,2.73036859]
[1749078546261,8.42022356,2609.5,2609.4,10.12436859]
[1749078548130,8.42022356,2609.5,2609.4,9.781]
[1749078548336,8.42022356,2609.5,2609.3,8.26]
[1749078548638,7.52216687,2609.5,2609.4,9.76]
[1749078552457,7.52216687,2609.5,2609.3,8.26]
[1749078552627,7.52216687,2609.5,2609.4,9.639]
[1749078556030,7.52216687,2609.5,2609.3,8.26]
[1749078556231,7.52216687,2609.5,2609.4,9.607]
[1749078556433,8.42022356,2609.5,2609.4,9.607]
[1749078557547,8.42022356,2609.5,2608.2,1.20901759]
[1749078557863,6.97216687,2608.8,2608.2,14.516111]
[1749078558748,6.97216687,2608.8,2608.3,7.289]
[1749078561163,6.97216687,2608.8,2608.2,1.21315288]
[1749078561365,6.97216687,2608.8,2608.5,16.0]
[1749078564735,6.97216687,2608.8,2608.6,7.231]
[1749078565233,3.35700324,2608.7,2608.1,0.02]
[1749078565431,3.35700324,2608.2,2608.1,0.02]
[1749078565670,3.35700324,2608.2,2608.1,16.02]
[1749078565869,3.35700324,2608.2,2608.1,23.242]
[1749078566772,3.35700324,2608.2,2608.1,23.2981]
[1749078567374,3.35700324,2608.2,2608.1,23.2851]
[1749078567673,3.35700324,2608.2,2608.1,33.7711]
[1749078568575,3.35700324,2608.2,2608.1,33.7611]
[1749078568774,3.35700324,2608.5,2608.2,16.0]
[1749078570877,0.55,2608.9,2608.4,16.0]
[1749078571076,3.35700324,2608.5,2608.4,16.0]
[1749078571489,3.35700324,2608.5,2608.4,7.174]
[1749078575013,3.35700324,2608.5,2608.4,7.148]
[1749078575282,3.35700324,2608.5,2608.4,2.221]
[1749078575485,3.35700324,2608.5,2608.4,9.364]
[1749078575686,3.90700324,2608.5,2608.4,9.361]
[1749078575843,3.90700324,2608.5,2608.4,9.362]
[1749078576049,3.90700324,2608.5,2608.4,2.221]
[1749078576250,4.29770356,2608.5,2608.4,9.36]
[1749078576479,5.73730356,2608.5,2608.4,9.356]
[1749078577520,0.55,2608.4,2608.1,8.285]
[1749078577697,0.55,2608.4,2608.2,9.35]
[1749078577853,3.90700324,2608.3,2608.2,9.35]
[1749078578054,3.90700324,2608.3,2608.2,2.221]
[1749078578389,3.90700324,2608.3,2608.2,9.344]
[1749078581089,4.43508016,2608.3,2608.2,2.221]
[1749078581312,4.43508016,2608.3,2608.2,9.322]
[1749078582304,4.43508016,2608.3,2608.2,2.221]
[1749078582834,4.43508016,2608.3,2608.2,9.31]
[1749078583916,4.43508016,2608.3,2608.2,9.302]
[1749078586984,3.90700324,2608.3,2608.2,9.302]
[1749078587390,3.35700324,2608.6,2608.3,0.0561]
[1749078587581,3.35700324,2608.4,2608.1,8.70875352]
[1749078587807,0.55,2608.9,2608.2,9.212]
[1749078588026,1.03044032,2608.9,2608.2,9.212]
[1749078588921,3.35700324,2608.3,2608.2,9.212]
[1749078589130,0.55,2608.2,2608.1,8.285]
[1749078589288,0.55,2608.2,2608.1,17.49]
[1749078593740,0.55,2608.2,2608.1,10.426]
[1749078593957,1.08526032,2608.2,2608.1,17.456]
[1749078594139,0.55,2608.2,2608.1,17.456]
[1749078596817,0.55,2608.2,2608.1,10.426]
[1749078597139,3.90700324,2608.2,2608.1,17.434]
[1749078597338,3.90700324,2608.2,2608.1,10.426]
[1749078597645,4.63340389,2608.2,2608.1,17.432]
[1749078597845,4.63340389,2608.2,2608.1,10.426]
[1749078598016,4.63340389,2608.2,2608.1,17.428]
[1749078599928,6.05570389,2608.2,2608.1,10.427]
[1749078600161,6.05570389,2608.2,2608.1,17.397]
[1749078600361,6.05570389,2608.2,2607.1,1.23315288]
[1749078600561,3.35700324,2607.2,2607.1,0.02]
[1749078600740,3.35700324,2607.2,2607.1,7.006]
[1749078600940,3.35700324,2607.2,2607.1,23.006]
[1749078601146,3.35700324,2607.2,2607.1,16.02]
[1749078601347,3.90700324,2607.2,2607.1,0.02]
[1749078602056,3.90700324,2607.2,2607.1,6.998]
[1749078602458,3.35700324,2606.8,2606.6,1.21315288]
[1749078602654,3.35700324,2606.8,2606.5,1.21315288]
[1749078603680,3.35700324,2606.8,2606.6,6.973]
[1749078604359,3.35700324,2606.8,2606.7,16.0]
[1749078604550,3.35700324,2606.8,2606.7,6.963]
[1749078604745,3.35700324,2606.8,2606.4,1.21315288]
[1749078604952,3.35700324,2606.5,2606.4,1.21315288]
[1749078605272,3.35700324,2606.5,2606.4,24.17315288]
[1749078607362,1.4223,2607.7,2606.4,53.33361388]
[1749078607674,3.35700324,2607.5,2606.9,12.184032]
[1749078607875,3.35700324,2607.5,2606.8,10.168871]
[1749078608055,3.35700324,2607.5,2607.0,16.0]
[1749078608256,3.35700324,2607.5,2607.1,7.30244536]
[1749078608473,3.35700324,2607.5,2607.2,2.065]
[1749078608677,3.35700324,2607.5,2607.3,0.35642983]
[1749078608868,3.35700324,2607.5,2607.2,18.065]
[1749078610083,9.2851,2608.2,2607.2,18.065]
[1749078610294,1.4051,2608.2,2607.2,19.27815288]
[1749078610461,3.35700324,2607.8,2607.2,19.27815288]
[1749078612074,3.35700324,2607.8,2607.4,16.0]
[1749078612279,3.35700324,2607.8,2607.5,0.35592457]
[1749078612582,3.35700324,2607.8,2607.3,20.450156]
[1749078613679,3.35700324,2607.8,2607.3,6.87646]
[1749078613877,3.35700324,2607.8,2607.4,8.975]
[1749078614945,3.35700324,2607.6,2607.4,8.975]
[1749078617899,3.35700324,2607.6,2607.5,8.268]
[1749078618597,3.35700324,2607.6,2607.5,17.213]
[1749078618934,3.35700324,2607.6,2607.5,10.333]
[1749078619719,3.35700324,2607.7,2607.5,10.333]
[1749078620232,3.35700324,2607.7,2607.6,6.874]
[1749078621516,3.35700324,2607.7,2607.6,6.864]
[1749078623733,3.35700324,2607.7,2607.5,8.268]
[1749078623895,4.24470356,2607.7,2607.6,8.832]
[1749078624727,4.24470356,2607.7,2607.6,1.982]
[1749078624932,4.24470356,2607.7,2607.6,8.829]
[1749078627302,3.90700324,2607.7,2607.6,8.829]
[1749078630262,3.90700324,2607.7,2607.6,8.798]
[1749078632160,5.26400324,2607.7,2607.6,8.787]
[1749078634519,3.90700324,2607.7,2607.6,8.787]
[1749078635266,3.90700324,2607.7,2607.6,10.25]
[1749078636228,3.90700324,2607.7,2607.6,17.037]
[1749078637153,3.35700324,2607.8,2607.6,17.037]
[1749078640048,0.02,2607.9,2607.6,17.037]
[1749078640550,0.02,2607.9,2607.8,10.0]
[1749078640752,0.02,2607.9,2607.8,3.278536]
[1749078643568,0.02,2607.9,2607.8,6.752]
[1749078643765,3.37700324,2607.9,2607.8,6.752]
[1749078644072,3.37700324,2607.9,2607.8,6.754]
[1749078644277,0.49336032,2607.9,2607.8,6.753]